[Event "Titled Tuesday Blitz July 25 Early 2023"]
[White "LLariMarc"]
[Black "Onufrienko, Vladislav"]
[BlackFideId "13804332"]
[WhiteElo "2356"]
[BlackElo "2492"]
[Result "1-0"]
[Round "8"]
[TimeControl "180+2"]
[Date "2023.07.25"]
[WhiteClock "0:01:13"]
[BlackClock "0:00:03"]
[Board "111"]

1. d4 {[%clk 0:02:55]}  d5 {[%clk 0:02:59]} 2. Nf3 {[%clk 0:02:53]}  Nf6 {[%clk 0:02:58]} 3. Bg5 {[%clk 0:02:53]}  Ne4 {[%clk 0:02:58]} 4. Bf4 {[%clk 0:02:52]}  c5 {[%clk 0:02:58]} 5. e3 {[%clk 0:02:47]}  Nc6 {[%clk 0:02:58]} 6. Nc3 {[%clk 0:02:47]}  Qa5 {[%clk 0:02:35]} 7. Bb5 {[%clk 0:02:35]}  Bg4 {[%clk 0:02:10]} 8. Bxc6+ {[%clk 0:02:32]}  bxc6 {[%clk 0:02:10]} 9. O-O {[%clk 0:02:32]}  Nxc3 {[%clk 0:02:06]} 10. bxc3 {[%clk 0:02:32]}  Qxc3 {[%clk 0:02:04]} 11. dxc5 {[%clk 0:02:31]}  Bxf3 {[%clk 0:01:29]} 12. Qxf3 {[%clk 0:02:29]}  e5 {[%clk 0:01:30]} 13. Bg3 {[%clk 0:02:13]}  Bxc5 {[%clk 0:01:29]} 14. Qf5 {[%clk 0:02:12]}  Bd6 {[%clk 0:01:01]} 15. h4 {[%clk 0:01:41]}  O-O {[%clk 0:01:01]} 16. h5 {[%clk 0:01:41]}  h6 {[%clk 0:01:01]} 17. Rab1 {[%clk 0:01:36]}  Rab8 {[%clk 0:00:51]} 18. Rb3 {[%clk 0:01:37]}  Rxb3 {[%clk 0:00:42]} 19. axb3 {[%clk 0:01:37]}  Rd8 {[%clk 0:00:39]} 20. Bh4 {[%clk 0:01:36]}  f6 {[%clk 0:00:28]} 21. Bxf6 {[%clk 0:01:35]}  gxf6 {[%clk 0:00:17]} 22. Qg6+ {[%clk 0:01:35]}  Kf8 {[%clk 0:00:17]} 23. Qxf6+ {[%clk 0:01:36]}  Ke8 {[%clk 0:00:18]} 24. Qxh6 {[%clk 0:01:34]}  Qxc2 {[%clk 0:00:16]} 25. Qe6+ {[%clk 0:01:32]}  Be7 {[%clk 0:00:16]} 26. h6 {[%clk 0:01:32]}  Rd6 {[%clk 0:00:15]} 27. Qg8+ {[%clk 0:01:28]}  Kd7 {[%clk 0:00:11]} 28. h7 {[%clk 0:01:29]}  Bf6 {[%clk 0:00:08]} 29. Qf7+ {[%clk 0:01:22]}  Kc8 {[%clk 0:00:06]} 30. Qxf6 {[%clk 0:01:20]}  Rxf6 {[%clk 0:00:07]} 31. h8=Q+ {[%clk 0:01:20]}  Kb7 {[%clk 0:00:07]} 32. Qxf6 {[%clk 0:01:21]}  Qxb3 {[%clk 0:00:07]} 33. Qxe5 {[%clk 0:01:21]}  a5 {[%clk 0:00:07]} 34. g4 {[%clk 0:01:21]}  a4 {[%clk 0:00:08]} 35. g5 {[%clk 0:01:21]}  Qc2 {[%clk 0:00:08]} 36. Qg7+ {[%clk 0:01:21]}  Kb6 {[%clk 0:00:08]} 37. g6 {[%clk 0:01:21]}  a3 {[%clk 0:00:08]} 38. Qf6 {[%clk 0:01:19]}  Qe4 {[%clk 0:00:07]} 39. Qg5 {[%clk 0:01:15]}  a2 {[%clk 0:00:05]} 40. g7 {[%clk 0:01:15]}  Qb1 {[%clk 0:00:04]} 41. g8=Q {[%clk 0:01:14]}  Qb3 {[%clk 0:00:03]} 42. Qb8+ {[%clk 0:01:13]} 1-0


[Site "https://www.chess.com"]

[Event "Titled Tuesday Blitz July 25 Early 2023"]
[White "Korelskiy, Egor"]
[Black "kiwibobo"]
[WhiteFideId "34329064"]
[WhiteElo "2488"]
[BlackElo "2338"]
[Result "0-1"]
[Round "8"]
[TimeControl "180+2"]
[Date "2023.07.25"]
[WhiteClock "0:00:00"]
[BlackClock "0:00:05"]
[Board "112"]

1. e4 {[%clk 0:03:00]}  e5 {[%clk 0:02:59]} 2. Nf3 {[%clk 0:03:00]}  Nc6 {[%clk 0:03:00]} 3. Bb5 {[%clk 0:03:00]}  a6 {[%clk 0:02:59]} 4. Ba4 {[%clk 0:03:01]}  Nf6 {[%clk 0:03:00]} 5. O-O {[%clk 0:03:00]}  b5 {[%clk 0:03:01]} 6. Bb3 {[%clk 0:02:58]}  Bc5 {[%clk 0:03:01]} 7. c3 {[%clk 0:02:57]}  d6 {[%clk 0:03:02]} 8. d4 {[%clk 0:02:57]}  Bb6 {[%clk 0:03:02]} 9. h3 {[%clk 0:02:57]}  h6 {[%clk 0:03:00]} 10. Re1 {[%clk 0:02:56]}  O-O {[%clk 0:03:00]} 11. a4 {[%clk 0:02:55]}  Rb8 {[%clk 0:02:57]} 12. axb5 {[%clk 0:02:42]}  axb5 {[%clk 0:02:56]} 13. Be3 {[%clk 0:02:43]}  Bb7 {[%clk 0:02:47]} 14. d5 {[%clk 0:02:35]}  Na5 {[%clk 0:02:34]} 15. Bxb6 {[%clk 0:02:25]}  cxb6 {[%clk 0:02:30]} 16. Bc2 {[%clk 0:02:26]}  Bc8 {[%clk 0:02:05]} 17. Qe2 {[%clk 0:02:20]}  Bd7 {[%clk 0:02:01]} 18. Nbd2 {[%clk 0:02:19]}  Qc7 {[%clk 0:01:56]} 19. Bd3 {[%clk 0:02:17]}  Nb7 {[%clk 0:01:50]} 20. Bxb5 {[%clk 0:02:15]}  Nc5 {[%clk 0:01:50]} 21. Bxd7 {[%clk 0:02:02]}  Ncxd7 {[%clk 0:01:46]} 22. Qc4 {[%clk 0:01:59]}  Rfc8 {[%clk 0:01:29]} 23. Qe2 {[%clk 0:01:50]}  b5 {[%clk 0:01:28]} 24. Rec1 {[%clk 0:01:42]}  b4 {[%clk 0:01:27]} 25. Nh4 {[%clk 0:01:27]}  bxc3 {[%clk 0:01:22]} 26. Rxc3 {[%clk 0:01:22]}  Qb6 {[%clk 0:01:16]} 27. Rxc8+ {[%clk 0:01:05]}  Rxc8 {[%clk 0:01:17]} 28. Nf5 {[%clk 0:01:04]}  Qxb2 {[%clk 0:01:07]} 29. Rd1 {[%clk 0:00:53]}  Rc2 {[%clk 0:00:48]} 30. Nxd6 {[%clk 0:00:45]}  Nc5 {[%clk 0:00:45]} 31. N6c4 {[%clk 0:00:36]}  Qa2 {[%clk 0:00:36]} 32. Ne3 {[%clk 0:00:29]}  Rb2 {[%clk 0:00:30]} 33. f3 {[%clk 0:00:18]}  Nb3 {[%clk 0:00:29]} 34. Nec4 {[%clk 0:00:17]}  Nd4 {[%clk 0:00:20]} 35. Qd3 {[%clk 0:00:16]}  Nh5 {[%clk 0:00:16]} 36. Nxb2 {[%clk 0:00:13]}  Nf4 {[%clk 0:00:14]} 37. Qb1 {[%clk 0:00:09]}  Qa3 {[%clk 0:00:13]} 38. Ndc4 {[%clk 0:00:08]}  Qb3 {[%clk 0:00:12]} 39. d6 {[%clk 0:00:08]}  Nde6 {[%clk 0:00:08]} 40. d7 {[%clk 0:00:08]}  Nd8 {[%clk 0:00:08]} 41. Nxe5 {[%clk 0:00:02]}  Ne2+ {[%clk 0:00:08]} 42. Kh2 {[%clk 0:00:02]}  Nc3 {[%clk 0:00:09]} 43. Qd3 {[%clk 0:00:02]}  Qxb2 {[%clk 0:00:08]} 44. Rd2 {[%clk 0:00:02]}  Qb4 {[%clk 0:00:06]} 45. Nc6 {[%clk 0:00:00]}  Qb6 {[%clk 0:00:05]} 0-1


[Site "https://www.chess.com"]

[Event "Titled Tuesday Blitz July 25 Early 2023"]
[White "Michalczak, Thomas"]
[Black "Kayis, Gulcan Sena"]
[WhiteFideId "4622634"]
[BlackFideId "34553045"]
[WhiteElo "2480"]
[BlackElo "2327"]
[Result "0-1"]
[Round "8"]
[TimeControl "180+2"]
[Date "2023.07.25"]
[WhiteClock "0:00:09"]
[BlackClock "0:01:23"]
[Board "113"]

1. e4 {[%clk 0:03:00]}  e6 {[%clk 0:02:59]} 2. d4 {[%clk 0:03:00]}  d5 {[%clk 0:02:59]} 3. Nc3 {[%clk 0:03:01]}  Nf6 {[%clk 0:02:59]} 4. e5 {[%clk 0:03:01]}  Nfd7 {[%clk 0:02:58]} 5. f4 {[%clk 0:03:01]}  c5 {[%clk 0:02:58]} 6. Nf3 {[%clk 0:03:02]}  Nc6 {[%clk 0:02:58]} 7. Be3 {[%clk 0:03:01]}  Be7 {[%clk 0:02:58]} 8. Qd2 {[%clk 0:02:59]}  Qb6 {[%clk 0:02:58]} 9. Nd1 {[%clk 0:02:46]}  cxd4 {[%clk 0:02:56]} 10. Nxd4 {[%clk 0:02:45]}  Nxd4 {[%clk 0:02:54]} 11. Bxd4 {[%clk 0:02:46]}  Bc5 {[%clk 0:02:54]} 12. c3 {[%clk 0:02:42]}  O-O {[%clk 0:02:51]} 13. b4 {[%clk 0:02:36]}  Bxd4 {[%clk 0:02:50]} 14. Qxd4 {[%clk 0:02:37]}  a5 {[%clk 0:02:48]} 15. b5 {[%clk 0:02:19]}  a4 {[%clk 0:02:42]} 16. Bd3 {[%clk 0:02:10]}  Nc5 {[%clk 0:02:40]} 17. O-O {[%clk 0:02:08]}  Bd7 {[%clk 0:02:34]} 18. Rb1 {[%clk 0:01:51]}  Rac8 {[%clk 0:02:19]} 19. Rf3 {[%clk 0:01:48]}  Qc7 {[%clk 0:02:17]} 20. Bc2 {[%clk 0:01:29]}  f6 {[%clk 0:02:08]} 21. exf6 {[%clk 0:01:24]}  Rxf6 {[%clk 0:02:07]} 22. g3 {[%clk 0:01:19]}  Qa5 {[%clk 0:02:02]} 23. b6 {[%clk 0:01:01]}  Na6 {[%clk 0:01:51]} 24. Qe5 {[%clk 0:00:42]}  Qc5+ {[%clk 0:01:47]} 25. Nf2 {[%clk 0:00:36]}  Rc6 {[%clk 0:01:44]} 26. Bxa4 {[%clk 0:00:22]}  Rd6 {[%clk 0:01:40]} 27. Bxd7 {[%clk 0:00:21]}  Rxd7 {[%clk 0:01:40]} 28. Kg2 {[%clk 0:00:21]}  Qc4 {[%clk 0:01:32]} 29. Ng4 {[%clk 0:00:20]}  Rg6 {[%clk 0:01:30]} 30. Re3 {[%clk 0:00:19]}  Qxa2+ {[%clk 0:01:28]} 31. Re2 {[%clk 0:00:18]}  Qxb1 {[%clk 0:01:27]} 32. f5 {[%clk 0:00:14]}  Qxf5 {[%clk 0:01:26]} 33. Qxf5 {[%clk 0:00:14]}  exf5 {[%clk 0:01:25]} 34. Ne5 {[%clk 0:00:09]}  Re6 {[%clk 0:01:23]} 0-1


[Site "https://www.chess.com"]

[Event "Titled Tuesday Blitz July 25 Early 2023"]
[White "Erzhanov, Arman"]
[Black "Ruge, Edison"]
[WhiteFideId "4138821"]
[BlackFideId "4401000"]
[WhiteElo "2478"]
[BlackElo "2246"]
[Result "0-1"]
[Round "8"]
[TimeControl "180+2"]
[Date "2023.07.25"]
[WhiteClock "0:01:33"]
[BlackClock "0:00:47"]
[Board "114"]

1. e4 {[%clk 0:03:00]}  e5 {[%clk 0:03:00]} 2. Nf3 {[%clk 0:03:00]}  Nc6 {[%clk 0:03:00]} 3. Bb5 {[%clk 0:02:59]}  f5 {[%clk 0:03:00]} 4. d3 {[%clk 0:02:57]}  fxe4 {[%clk 0:03:00]} 5. dxe4 {[%clk 0:02:58]}  Nf6 {[%clk 0:03:00]} 6. Nc3 {[%clk 0:02:57]}  Bb4 {[%clk 0:03:00]} 7. Qd3 {[%clk 0:02:56]}  d6 {[%clk 0:02:57]} 8. Bc4 {[%clk 0:02:54]}  Bxc3+ {[%clk 0:02:55]} 9. bxc3 {[%clk 0:02:54]}  Qe7 {[%clk 0:02:55]} 10. Rb1 {[%clk 0:02:51]}  Nd8 {[%clk 0:02:54]} 11. O-O {[%clk 0:02:49]}  Be6 {[%clk 0:02:50]} 12. Bb3 {[%clk 0:02:45]}  O-O {[%clk 0:02:48]} 13. Ng5 {[%clk 0:02:45]}  Kh8 {[%clk 0:02:42]} 14. f4 {[%clk 0:02:38]}  exf4 {[%clk 0:02:40]} 15. Bxf4 {[%clk 0:02:37]}  h6 {[%clk 0:02:40]} 16. Nf3 {[%clk 0:02:28]}  Ng4 {[%clk 0:02:32]} 17. h3 {[%clk 0:02:20]}  Rxf4 {[%clk 0:02:30]} 18. hxg4 {[%clk 0:02:19]}  Bxg4 {[%clk 0:02:25]} 19. Rbe1 {[%clk 0:02:17]}  Ne6 {[%clk 0:02:23]} 20. e5 {[%clk 0:02:16]}  Nc5 {[%clk 0:02:22]} 21. Qg6 {[%clk 0:02:14]}  Nxb3 {[%clk 0:01:54]} 22. exd6 {[%clk 0:02:13]}  Qxd6 {[%clk 0:01:50]} 23. Qxd6 {[%clk 0:02:13]}  cxd6 {[%clk 0:01:50]} 24. cxb3 {[%clk 0:02:14]}  Raf8 {[%clk 0:01:44]} 25. Re3 {[%clk 0:02:12]}  Bxf3 {[%clk 0:01:41]} 26. gxf3 {[%clk 0:02:09]}  g5 {[%clk 0:01:37]} 27. c4 {[%clk 0:02:05]}  Kg7 {[%clk 0:01:36]} 28. Rd1 {[%clk 0:02:05]}  Rxf3 {[%clk 0:01:34]} 29. Rxf3 {[%clk 0:02:03]}  Rxf3 {[%clk 0:01:34]} 30. Rxd6 {[%clk 0:02:04]}  g4 {[%clk 0:01:27]} 31. c5 {[%clk 0:02:01]}  h5 {[%clk 0:01:21]} 32. b4 {[%clk 0:02:00]}  h4 {[%clk 0:01:16]} 33. Rd4 {[%clk 0:01:59]}  Rg3+ {[%clk 0:01:15]} 34. Kh2 {[%clk 0:01:59]}  Kf6 {[%clk 0:01:16]} 35. b5 {[%clk 0:01:58]}  Kf5 {[%clk 0:01:15]} 36. c6 {[%clk 0:01:58]}  bxc6 {[%clk 0:01:14]} 37. bxc6 {[%clk 0:01:59]}  Rc3 {[%clk 0:01:14]} 38. Rd5+ {[%clk 0:01:58]}  Kf4 {[%clk 0:01:13]} 39. Rd4+ {[%clk 0:01:57]}  Kf3 {[%clk 0:01:13]} 40. Rd6 {[%clk 0:01:53]}  Rc2+ {[%clk 0:01:12]} 41. Kg1 {[%clk 0:01:53]}  Rxa2 {[%clk 0:01:12]} 42. Rd3+ {[%clk 0:01:52]}  Ke4 {[%clk 0:01:07]} 43. Rc3 {[%clk 0:01:52]}  Ra1+ {[%clk 0:00:55]} 44. Kg2 {[%clk 0:01:50]}  Ra2+ {[%clk 0:00:55]} 45. Kf1 {[%clk 0:01:50]}  Ra1+ {[%clk 0:00:54]} 46. Ke2 {[%clk 0:01:49]}  Ra2+ {[%clk 0:00:54]} 47. Kd1 {[%clk 0:01:49]}  h3 {[%clk 0:00:53]} 48. Rc4+ {[%clk 0:01:38]}  Kd3 {[%clk 0:00:50]} 49. Rxg4 {[%clk 0:01:33]}  Ra1# {[%clk 0:00:47]} 0-1


[Site "https://www.chess.com"]

[Event "Titled Tuesday Blitz July 25 Early 2023"]
[White "Yashmetov, Mikhail"]
[Black "Danielyan, Vahe"]
[WhiteFideId "24198900"]
[BlackFideId "13304828"]
[WhiteElo "2425"]
[BlackElo "2627"]
[Result "0-1"]
[Round "8"]
[TimeControl "180+2"]
[Date "2023.07.25"]
[WhiteClock "0:00:02"]
[BlackClock "0:01:25"]
[Board "116"]

1. d4 {[%clk 0:03:00]}  Nf6 {[%clk 0:02:53]} 2. c4 {[%clk 0:03:00]}  g6 {[%clk 0:02:53]} 3. g3 {[%clk 0:03:00]}  Bg7 {[%clk 0:02:52]} 4. Bg2 {[%clk 0:03:01]}  O-O {[%clk 0:02:52]} 5. Nf3 {[%clk 0:03:02]}  d6 {[%clk 0:02:53]} 6. Nc3 {[%clk 0:03:02]}  c6 {[%clk 0:02:53]} 7. O-O {[%clk 0:03:02]}  Bf5 {[%clk 0:02:53]} 8. Qb3 {[%clk 0:02:58]}  Qb6 {[%clk 0:02:51]} 9. Qxb6 {[%clk 0:02:54]}  axb6 {[%clk 0:02:51]} 10. Nd2 {[%clk 0:02:53]}  Na6 {[%clk 0:02:28]} 11. e4 {[%clk 0:02:52]}  Be6 {[%clk 0:02:17]} 12. d5 {[%clk 0:02:44]}  cxd5 {[%clk 0:02:16]} 13. cxd5 {[%clk 0:02:42]}  Bg4 {[%clk 0:02:16]} 14. Nc4 {[%clk 0:02:38]}  Nb4 {[%clk 0:02:11]} 15. Nxb6 {[%clk 0:02:28]}  Ra6 {[%clk 0:02:10]} 16. Nc4 {[%clk 0:02:27]}  Rc8 {[%clk 0:02:11]} 17. Ne3 {[%clk 0:02:27]}  Bd7 {[%clk 0:02:09]} 18. Bd2 {[%clk 0:02:22]}  Ng4 {[%clk 0:02:08]} 19. Nxg4 {[%clk 0:02:19]}  Bxg4 {[%clk 0:02:09]} 20. a3 {[%clk 0:02:13]}  Nd3 {[%clk 0:02:09]} 21. Rab1 {[%clk 0:02:09]}  Bd4 {[%clk 0:01:53]} 22. h3 {[%clk 0:01:46]}  Bd7 {[%clk 0:01:52]} 23. Nd1 {[%clk 0:01:30]}  Rc2 {[%clk 0:01:50]} 24. Bc3 {[%clk 0:01:27]}  Bxc3 {[%clk 0:01:49]} 25. bxc3 {[%clk 0:01:27]}  b5 {[%clk 0:01:48]} 26. Ra1 {[%clk 0:01:02]}  Nc1 {[%clk 0:01:40]} 27. Ne3 {[%clk 0:00:47]}  Ne2+ {[%clk 0:01:39]} 28. Kh2 {[%clk 0:00:47]}  Rxc3 {[%clk 0:01:39]} 29. Rfe1 {[%clk 0:00:41]}  Nd4 {[%clk 0:01:39]} 30. Red1 {[%clk 0:00:35]}  Nb3 {[%clk 0:01:37]} 31. Ra2 {[%clk 0:00:33]}  b4 {[%clk 0:01:37]} 32. a4 {[%clk 0:00:19]}  Rxa4 {[%clk 0:01:36]} 33. Rb2 {[%clk 0:00:16]}  Nc5 {[%clk 0:01:31]} 34. Rdb1 {[%clk 0:00:16]}  b3 {[%clk 0:01:32]} 35. Nd1 {[%clk 0:00:14]}  Rc2 {[%clk 0:01:32]} 36. Ne3 {[%clk 0:00:11]}  Rxb2 {[%clk 0:01:32]} 37. Rxb2 {[%clk 0:00:12]}  Ra2 {[%clk 0:01:32]} 38. Nd1 {[%clk 0:00:12]}  Bb5 {[%clk 0:01:30]} 39. Bf3 {[%clk 0:00:09]}  Bc4 {[%clk 0:01:31]} 40. Kg1 {[%clk 0:00:06]}  Na4 {[%clk 0:01:28]} 41. Rb1 {[%clk 0:00:04]}  b2 {[%clk 0:01:27]} 42. Nxb2 {[%clk 0:00:01]}  Rxb2 {[%clk 0:01:27]} 43. Rc1 {[%clk 0:00:02]}  Bd3 {[%clk 0:01:27]} 44. Rd1 {[%clk 0:00:02]}  Rb1 {[%clk 0:01:27]} 45. Kg2 {[%clk 0:00:01]}  Rxd1 {[%clk 0:01:26]} 46. Bxd1 {[%clk 0:00:02]}  Bxe4+ {[%clk 0:01:25]} 0-1


[Site "https://www.chess.com"]

[Event "Titled Tuesday Blitz July 25 Early 2023"]
[White "Miszler, Levente"]
[Black "Khusenkhojaev, Muhammad"]
[WhiteFideId "763276"]
[BlackFideId "14700247"]
[WhiteElo "2418"]
[BlackElo "2596"]
[Result "0-1"]
[Round "8"]
[TimeControl "180+2"]
[Date "2023.07.25"]
[WhiteClock "0:00:49"]
[BlackClock "0:00:46"]
[Board "118"]

1. Nf3 {[%clk 0:02:41]}  Nf6 {[%clk 0:02:57]} 2. c4 {[%clk 0:02:41]}  g6 {[%clk 0:02:57]} 3. g3 {[%clk 0:02:40]}  Bg7 {[%clk 0:02:58]} 4. Bg2 {[%clk 0:02:41]}  O-O {[%clk 0:02:58]} 5. O-O {[%clk 0:02:42]}  d6 {[%clk 0:02:58]} 6. Nc3 {[%clk 0:02:42]}  Nc6 {[%clk 0:02:56]} 7. Rb1 {[%clk 0:02:41]}  a5 {[%clk 0:02:52]} 8. a3 {[%clk 0:02:41]}  Bf5 {[%clk 0:02:49]} 9. d3 {[%clk 0:02:41]}  e5 {[%clk 0:02:48]} 10. b4 {[%clk 0:02:33]}  axb4 {[%clk 0:02:48]} 11. axb4 {[%clk 0:02:34]}  e4 {[%clk 0:02:49]} 12. Nh4 {[%clk 0:02:33]}  exd3 {[%clk 0:02:33]} 13. Nxf5 {[%clk 0:02:32]}  dxe2 {[%clk 0:02:33]} 14. Nxe2 {[%clk 0:02:30]}  gxf5 {[%clk 0:02:32]} 15. b5 {[%clk 0:02:30]}  Ne5 {[%clk 0:02:28]} 16. Bxb7 {[%clk 0:02:29]}  Rb8 {[%clk 0:02:27]} 17. Bg2 {[%clk 0:02:28]}  Ne4 {[%clk 0:02:21]} 18. Nd4 {[%clk 0:02:28]}  Qf6 {[%clk 0:02:17]} 19. Bb2 {[%clk 0:02:24]}  Nxc4 {[%clk 0:02:16]} 20. Ba1 {[%clk 0:02:18]}  Ra8 {[%clk 0:02:10]} 21. Nb3 {[%clk 0:01:56]}  Qg6 {[%clk 0:02:03]} 22. Bxg7 {[%clk 0:01:48]}  Qxg7 {[%clk 0:02:03]} 23. Qd5 {[%clk 0:01:43]}  Ne5 {[%clk 0:01:50]} 24. Bxe4 {[%clk 0:01:43]}  fxe4 {[%clk 0:01:46]} 25. Qxe4 {[%clk 0:01:43]}  Ra2 {[%clk 0:01:36]} 26. Nd4 {[%clk 0:01:37]}  Ra4 {[%clk 0:01:35]} 27. Rfd1 {[%clk 0:01:30]}  Qg6 {[%clk 0:01:25]} 28. Qxg6+ {[%clk 0:01:26]}  hxg6 {[%clk 0:01:26]} 29. Nc6 {[%clk 0:01:24]}  Nxc6 {[%clk 0:01:23]} 30. bxc6 {[%clk 0:01:25]}  Rc4 {[%clk 0:01:23]} 31. Rdc1 {[%clk 0:01:19]}  Rxc1+ {[%clk 0:01:23]} 32. Rxc1 {[%clk 0:01:20]}  Ra8 {[%clk 0:01:23]} 33. Kg2 {[%clk 0:01:20]}  f5 {[%clk 0:01:18]} 34. Kf3 {[%clk 0:01:19]}  Kf7 {[%clk 0:01:18]} 35. Kf4 {[%clk 0:01:17]}  Kf6 {[%clk 0:01:17]} 36. h4 {[%clk 0:01:16]}  Ra4+ {[%clk 0:01:16]} 37. Ke3 {[%clk 0:01:16]}  Ke5 {[%clk 0:01:16]} 38. Kd3 {[%clk 0:01:06]}  Kd5 {[%clk 0:01:09]} 39. Re1 {[%clk 0:01:05]}  Ra3+ {[%clk 0:01:02]} 40. Kd2 {[%clk 0:00:59]}  Ra2+ {[%clk 0:01:02]} 41. Ke3 {[%clk 0:00:59]}  Kxc6 {[%clk 0:01:00]} 42. Kf4 {[%clk 0:00:59]}  Rxf2+ {[%clk 0:01:00]} 43. Kg5 {[%clk 0:00:59]}  Rg2 {[%clk 0:00:59]} 44. Kxg6 {[%clk 0:00:57]}  f4 {[%clk 0:00:58]} 45. h5 {[%clk 0:00:55]}  Rxg3+ {[%clk 0:00:51]} 46. Kf5 {[%clk 0:00:53]}  f3 {[%clk 0:00:47]} 47. Rh1 {[%clk 0:00:49]}  f2 {[%clk 0:00:46]} 0-1


[Site "https://www.chess.com"]

[Event "Titled Tuesday Blitz July 25 Early 2023"]
[White "Pershina, Elena"]
[Black "NicolaiMaxime"]
[WhiteFideId "24147516"]
[WhiteElo "2416"]
[BlackElo "2591"]
[Result "1-0"]
[Round "8"]
[TimeControl "180+2"]
[Date "2023.07.25"]
[WhiteClock "0:02:09"]
[BlackClock "0:02:11"]
[Board "119"]

1. c4 {[%clk 0:03:00]}  Nf6 {[%clk 0:02:55]} 2. g3 {[%clk 0:03:00]}  e5 {[%clk 0:02:55]} 3. Nc3 {[%clk 0:02:58]}  d5 {[%clk 0:02:54]} 4. cxd5 {[%clk 0:02:58]}  Nxd5 {[%clk 0:02:55]} 5. Bg2 {[%clk 0:02:58]}  Be6 {[%clk 0:02:55]} 6. Nf3 {[%clk 0:02:50]}  Nc6 {[%clk 0:02:55]} 7. O-O {[%clk 0:02:49]}  Bc5 {[%clk 0:02:50]} 8. Nxe5 {[%clk 0:02:46]}  Nxe5 {[%clk 0:02:48]} 9. d4 {[%clk 0:02:45]}  Nxc3 {[%clk 0:02:41]} 10. bxc3 {[%clk 0:02:44]}  Bd6 {[%clk 0:02:34]} 11. dxe5 {[%clk 0:02:39]}  Bxe5 {[%clk 0:02:35]} 12. Bxb7 {[%clk 0:02:36]}  Qxd1 {[%clk 0:02:31]} 13. Rxd1 {[%clk 0:02:35]}  Rb8 {[%clk 0:02:29]} 14. Bc6+ {[%clk 0:02:33]}  Ke7 {[%clk 0:02:30]} 15. Ba3+ {[%clk 0:02:32]}  Kf6 {[%clk 0:02:29]} 16. Rd3 {[%clk 0:02:25]}  Rb6 {[%clk 0:02:26]} 17. Rf3+ {[%clk 0:02:21]}  Kg6 {[%clk 0:02:24]} 18. Be4+ {[%clk 0:02:15]}  f5 {[%clk 0:02:24]} 19. Bc2 {[%clk 0:02:14]}  Rd8 {[%clk 0:02:19]} 20. g4 {[%clk 0:02:12]}  Rf8 {[%clk 0:02:11]} 21. Bxf8 {[%clk 0:02:09]} 1-0


[Site "https://www.chess.com"]

[Event "Titled Tuesday Blitz July 25 Early 2023"]
[White "Zacurdajev, Dmitry"]
[Black "Veiga, Jose Francisco R P Neves"]
[WhiteFideId "4196309"]
[BlackFideId "1930087"]
[WhiteElo "2415"]
[BlackElo "2578"]
[Result "0-1"]
[Round "8"]
[TimeControl "180+2"]
[Date "2023.07.25"]
[WhiteClock "0:00:16"]
[BlackClock "0:00:46"]
[Board "120"]

1. d4 {[%clk 0:03:00]}  Nf6 {[%clk 0:02:59]} 2. c4 {[%clk 0:03:01]}  c5 {[%clk 0:02:59]} 3. d5 {[%clk 0:03:00]}  e6 {[%clk 0:03:00]} 4. Nc3 {[%clk 0:03:00]}  exd5 {[%clk 0:03:00]} 5. cxd5 {[%clk 0:03:01]}  g6 {[%clk 0:03:01]} 6. Nf3 {[%clk 0:03:01]}  Bg7 {[%clk 0:03:01]} 7. Bf4 {[%clk 0:03:01]}  d6 {[%clk 0:03:00]} 8. h3 {[%clk 0:02:59]}  O-O {[%clk 0:03:00]} 9. e3 {[%clk 0:03:00]}  Na6 {[%clk 0:02:55]} 10. Be2 {[%clk 0:02:59]}  Nc7 {[%clk 0:02:54]} 11. O-O {[%clk 0:02:58]}  Re8 {[%clk 0:02:51]} 12. Qd2 {[%clk 0:02:44]}  Ne4 {[%clk 0:02:49]} 13. Nxe4 {[%clk 0:02:44]}  Rxe4 {[%clk 0:02:50]} 14. Rfd1 {[%clk 0:02:40]}  b5 {[%clk 0:02:48]} 15. a4 {[%clk 0:02:38]}  Rb4 {[%clk 0:02:36]} 16. Ra2 {[%clk 0:02:29]}  Bb7 {[%clk 0:02:28]} 17. Bxb5 {[%clk 0:01:56]}  Bxd5 {[%clk 0:02:05]} 18. Ra3 {[%clk 0:01:51]}  Rxb2 {[%clk 0:02:03]} 19. Qc1 {[%clk 0:01:49]}  Bxf3 {[%clk 0:01:21]} 20. gxf3 {[%clk 0:01:16]}  Qh4 {[%clk 0:01:20]} 21. Bg3 {[%clk 0:01:08]}  Qxh3 {[%clk 0:01:20]} 22. Rxd6 {[%clk 0:00:59]}  Ne6 {[%clk 0:01:21]} 23. Bd7 {[%clk 0:00:53]}  h5 {[%clk 0:01:06]} 24. Qd1 {[%clk 0:00:17]}  h4 {[%clk 0:00:59]} 25. Bh2 {[%clk 0:00:17]}  Rab8 {[%clk 0:00:48]} 26. Ra1 {[%clk 0:00:17]}  Rxf2 {[%clk 0:00:47]} 27. Rxe6 {[%clk 0:00:16]}  Qxh2# {[%clk 0:00:46]} 0-1


[Site "https://www.chess.com"]

[Event "Titled Tuesday Blitz July 25 Early 2023"]
[White "Willy, Stephen"]
[Black "Ibadov, Dashgyn"]
[WhiteFideId "30981468"]
[BlackFideId "24107514"]
[WhiteElo "2404"]
[BlackElo "2558"]
[Result "1-0"]
[Round "8"]
[TimeControl "180+2"]
[Date "2023.07.25"]
[WhiteClock "0:00:16"]
[BlackClock "0:00:00"]
[Board "122"]

1. e4 {[%clk 0:03:00]}  e6 {[%clk 0:02:59]} 2. c4 {[%clk 0:02:57]}  d5 {[%clk 0:03:00]} 3. cxd5 {[%clk 0:02:58]}  exd5 {[%clk 0:03:01]} 4. exd5 {[%clk 0:02:58]}  Nf6 {[%clk 0:03:01]} 5. Nc3 {[%clk 0:02:57]}  Nbd7 {[%clk 0:03:01]} 6. Bc4 {[%clk 0:02:56]}  Nb6 {[%clk 0:02:59]} 7. Qb3 {[%clk 0:02:45]}  Nxc4 {[%clk 0:02:56]} 8. Qxc4 {[%clk 0:02:45]}  Bd6 {[%clk 0:02:51]} 9. Nf3 {[%clk 0:02:44]}  Bg4 {[%clk 0:02:52]} 10. Nd4 {[%clk 0:02:26]}  Qe7+ {[%clk 0:02:41]} 11. Kf1 {[%clk 0:02:23]}  O-O {[%clk 0:02:38]} 12. d3 {[%clk 0:02:11]}  Rfe8 {[%clk 0:02:26]} 13. Be3 {[%clk 0:01:59]}  Nd7 {[%clk 0:02:17]} 14. h3 {[%clk 0:01:48]}  Ne5 {[%clk 0:02:17]} 15. Qb3 {[%clk 0:01:46]}  Bd7 {[%clk 0:02:13]} 16. Ne4 {[%clk 0:01:44]}  Nxd3 {[%clk 0:02:07]} 17. Nxd6 {[%clk 0:01:42]}  Nc5 {[%clk 0:02:07]} 18. N6f5 {[%clk 0:01:35]}  Qe4 {[%clk 0:01:44]} 19. Qc4 {[%clk 0:01:16]}  Bxf5 {[%clk 0:01:11]} 20. Qxc5 {[%clk 0:01:15]}  Qd3+ {[%clk 0:01:11]} 21. Kg1 {[%clk 0:01:14]}  Bg6 {[%clk 0:00:52]} 22. Re1 {[%clk 0:01:06]}  Rad8 {[%clk 0:00:47]} 23. Qxc7 {[%clk 0:01:02]}  Rxd5 {[%clk 0:00:46]} 24. Nf3 {[%clk 0:01:00]}  h6 {[%clk 0:00:42]} 25. Kh2 {[%clk 0:00:58]}  Kh7 {[%clk 0:00:36]} 26. Rd1 {[%clk 0:00:55]}  Qe4 {[%clk 0:00:33]} 27. Rxd5 {[%clk 0:00:48]}  Qxd5 {[%clk 0:00:34]} 28. Rc1 {[%clk 0:00:43]}  Be4 {[%clk 0:00:29]} 29. Rc5 {[%clk 0:00:38]}  Qxa2 {[%clk 0:00:24]} 30. Re5 {[%clk 0:00:30]}  Rxe5 {[%clk 0:00:20]} 31. Nxe5 {[%clk 0:00:31]}  f6 {[%clk 0:00:17]} 32. Nd7 {[%clk 0:00:23]}  Qxb2 {[%clk 0:00:16]} 33. Nf8+ {[%clk 0:00:22]}  Kg8 {[%clk 0:00:16]} 34. Nd7 {[%clk 0:00:19]}  Kh7 {[%clk 0:00:09]} 35. Qd6 {[%clk 0:00:16]}  Bc6 {[%clk 0:00:08]} 36. Bd4 {[%clk 0:00:16]}  Qe2 {[%clk 0:00:04]} 37. Nxf6+ {[%clk 0:00:15]}  gxf6 {[%clk 0:00:00]} 38. Qxf6 {[%clk 0:00:16]} 1-0


[Site "https://www.chess.com"]